{"text_format":"1","workbook":"xlsx","n_sheets":3,"sheets":["Штатка","Табель","Зарплата"],"not_rendered":{"charts":0,"images":0,"macros":1,"external_links":1,"defined_names":8,"comments":0,"pivot_tables":0},"unopened":[],"bounds":{"document_bytes":16777216,"sheet_cells":100000,"rows_first":2000,"rows_last":500,"rows_between":2000,"halvings":0,"cell_chars":16384,"cell_head_chars":4096},"cells_cut":0,"cells_raw":0,"read":"whole","date_system":"1900"}

{"sheet":"Штатка","index":0,"n_rows":119,"n_cols":8,"rows_kept":119,"cut":false,"hidden":false,"merged":[]}
["Штатное расписание"]
["Отчетный период","Статус работника",null,null,"Фамилия",null,null,"Столбец для поиска должностей в табеле)))\nпо фамилии и месяцу"]
["2017-01-01","Работает",null,null,"Иванов1","Директор",null,{"$f":"E3&A3","v":"Иванов142736"}]
["2017-01-01","Работает",null,null,"Иванов2","Бухгалтер",null,{"$f":"E4&A4","v":"Иванов242736"}]
["2017-01-01","Работает",null,null,"Иванов3","ОК",null,"Иванов342736"]
["2017-01-01","Работает",null,null,"Иванов4","Кассир",null,"Иванов442736"]
["2017-01-01","Работает",null,null,"Иванов5","Инженер ТБ",null,"Иванов542736"]
["2017-01-01","Рассчитан",null,null,"Иванов6","Экономист",null,"Иванов642736"]
["2017-01-01","Рассчитан",null,null,"Иванов7","Сторож",null,"Иванов742736"]
["2017-01-01","Работает",null,null,"Иванов8","Директор",null,{"$f":"E10&A10","v":"Иванов842736"}]
["2017-01-01","Работает",null,null,"Иванов9","Бухгалтер",null,{"$f":"E11&A11","v":"Иванов942736"}]
["2017-01-01","Работает",null,null,"Иванов10","ОК",null,"Иванов1042736"]
["2017-01-01","Работает",null,null,"Иванов11","Кассир",null,"Иванов1142736"]
["2017-01-01","Работает",null,null,"Иванов12","Инженер ТБ",null,"Иванов1242736"]
["2017-01-01","Работает",null,null,"Иванов13","Экономист",null,"Иванов1342736"]
["2017-01-01","Рассчитан",null,null,"Иванов14","Сторож",null,"Иванов1442736"]
["2017-01-01","Работает",null,null,"Иванов15","Директор",null,{"$f":"E17&A17","v":"Иванов1542736"}]
["2017-01-01","Работает",null,null,"Иванов16","Бухгалтер",null,{"$f":"E18&A18","v":"Иванов1642736"}]
["2017-01-01","Работает",null,null,"Иванов17","ОК",null,"Иванов1742736"]
["2017-01-01","Работает",null,null,"Иванов18","Кассир",null,"Иванов1842736"]
["2017-01-01","Работает",null,null,"Иванов19","Инженер ТБ",null,"Иванов1942736"]
["2017-01-01","Работает",null,null,"Иванов20","Экономист",null,"Иванов2042736"]
["2017-01-01","Рассчитан",null,null,"Иванов21","Сторож",null,"Иванов2142736"]
["2017-01-01","Работает",null,null,"Иванов22","Директор",null,{"$f":"E24&A24","v":"Иванов2242736"}]
["2017-01-01","Работает",null,null,"Иванов23","Бухгалтер",null,{"$f":"E25&A25","v":"Иванов2342736"}]
["2017-01-01","Работает",null,null,"Иванов24","ОК",null,"Иванов2442736"]
["2017-01-01","Работает",null,null,"Иванов25","Кассир",null,"Иванов2542736"]
["2017-01-01","Работает",null,null,"Иванов26","Инженер ТБ",null,"Иванов2642736"]
["2017-01-01","Работает",null,null,"Иванов27","Экономист",null,"Иванов2742736"]
["2017-01-01","Работает",null,null,"Иванов28","Сторож",null,"Иванов2842736"]
["2017-01-01","Работает",null,null,"Иванов29","Директор",null,{"$f":"E31&A31","v":"Иванов2942736"}]
["2017-01-01","Работает",null,null,"Иванов30","Бухгалтер",null,{"$f":"E32&A32","v":"Иванов3042736"}]
["2017-01-01","Работает",null,null,"Иванов31","ОК",null,"Иванов3142736"]
["2017-01-01","Работает",null,null,"Иванов32","Кассир",null,"Иванов3242736"]
["2017-01-01","Работает",null,null,"Иванов33","Инженер ТБ",null,"Иванов3342736"]
["2017-01-01","Рассчитан",null,null,"Иванов34","Экономист",null,"Иванов3442736"]
["2017-01-01","Рассчитан",null,null,"Иванов35","Сторож",null,"Иванов3542736"]
["2017-01-01","Работает",null,null,"Иванов36","Директор",null,{"$f":"E38&A38","v":"Иванов3642736"}]
["2017-01-01","Работает",null,null,"Иванов37","Бухгалтер",null,{"$f":"E39&A39","v":"Иванов3742736"}]
["2017-01-01","Работает",null,null,"Иванов38","ОК",null,"Иванов3842736"]
["2017-01-01","Работает",null,null,"Иванов39","Кассир",null,"Иванов3942736"]
["2017-01-01","Работает",null,null,"Иванов40","Инженер ТБ",null,"Иванов4042736"]
["2017-01-01","Работает",null,null,"Иванов41","Экономист",null,"Иванов4142736"]
["2017-01-01","Рассчитан",null,null,"Иванов42","Сторож",null,"Иванов4242736"]
["2017-01-01","Работает",null,null,"Иванов43","Директор",null,{"$f":"E45&A45","v":"Иванов4342736"}]
["2017-01-01","Работает",null,null,"Иванов44","Бухгалтер",null,{"$f":"E46&A46","v":"Иванов4442736"}]
["2017-01-01","Работает",null,null,"Иванов45","ОК",null,"Иванов4542736"]
["2017-01-01","Работает",null,null,"Иванов46","Кассир",null,"Иванов4642736"]
["2017-01-01","Работает",null,null,"Иванов47","Инженер ТБ",null,"Иванов4742736"]
["2017-01-01","Работает",null,null,"Иванов48","Экономист",null,"Иванов4842736"]
["2017-01-01","Рассчитан",null,null,"Иванов49","Сторож",null,"Иванов4942736"]
["2017-01-01","Работает",null,null,"Иванов50","Директор",null,{"$f":"E52&A52","v":"Иванов5042736"}]
["2017-01-01","Работает",null,null,"Иванов51","Бухгалтер",null,{"$f":"E53&A53","v":"Иванов5142736"}]
["2017-01-01","Работает",null,null,"Иванов52","ОК",null,"Иванов5242736"]
["2017-01-01","Работает",null,null,"Иванов53","Кассир",null,"Иванов5342736"]
["2017-01-01","Работает",null,null,"Иванов54","Инженер ТБ",null,"Иванов5442736"]
["2017-01-01","Работает",null,null,"Иванов55","Экономист",null,"Иванов5542736"]
["2017-01-01","Работает",null,null,"Иванов56","Сторож",null,"Иванов5642736"]
["2017-02-01","Работает",null,null,"Иванов57","Директор",null,"Иванов5742767"]
["2017-02-01","Работает",null,null,"Иванов58","Бухгалтер",null,"Иванов5842767"]
["2017-02-01","Работает",null,null,"Иванов59","ОК",null,"Иванов5942767"]
["2017-02-01","Работает",null,null,"Иванов60","Кассир",null,"Иванов6042767"]
["2017-02-01","Работает",null,null,"Иванов61","Инженер ТБ",null,"Иванов6142767"]
["2017-02-01","Уволен",null,null,"Иванов62","Экономист",null,"Иванов6242767"]
["2017-02-01","Работает",null,null,"Иванов63","Экономист 2",null,"Иванов6342767"]
["2017-02-01","Работает",null,null,"Иванов64","Директор",null,{"$f":"E66&A66","v":"Иванов6442767"}]
["2017-02-01","Работает",null,null,"Иванов65","Бухгалтер",null,"Иванов6542767"]
["2017-02-01","Работает",null,null,"Иванов66","ОК",null,"Иванов6642767"]
["2017-02-01","Работает",null,null,"Иванов67","Кассир",null,"Иванов6742767"]
["2017-02-01","Работает",null,null,"Иванов68","Инженер ТБ",null,"Иванов6842767"]
["2017-02-01","Уволен",null,null,"Иванов69","Экономист",null,"Иванов6942767"]
["2017-02-01","Работает",null,null,"Иванов70","Экономист 2",null,"Иванов7042767"]
["2017-02-01","Работает",null,null,"Иванов71","Директор",null,"Иванов7142767"]
["2017-02-01","Работает",null,null,"Иванов72","Бухгалтер",null,"Иванов7242767"]
["2017-02-01","Работает",null,null,"Иванов73","ОК",null,"Иванов7342767"]
["2017-02-01","Работает",null,null,"Иванов74","Кассир",null,"Иванов7442767"]
["2017-02-01","Работает",null,null,"Иванов75","Инженер ТБ",null,"Иванов7542767"]
["2017-02-01","Уволен",null,null,"Иванов76","Экономист",null,"Иванов7642767"]
["2017-02-01","Работает",null,null,"Иванов77","Экономист 2",null,"Иванов7742767"]
["2017-02-01","Работает",null,null,"Иванов78","Директор",null,{"$f":"E80&A80","v":"Иванов7842767"}]
["2017-02-01","Работает",null,null,"Иванов79","Бухгалтер",null,"Иванов7942767"]
["2017-02-01","Работает",null,null,"Иванов80","ОК",null,"Иванов8042767"]
["2017-02-01","Работает",null,null,"Иванов81","Кассир",null,"Иванов8142767"]
["2017-02-01","Работает",null,null,"Иванов82","Инженер ТБ",null,"Иванов8242767"]
["2017-02-01","Уволен",null,null,"Иванов83","Экономист",null,"Иванов8342767"]
["2017-02-01","Работает",null,null,"Иванов84","Экономист 2",null,"Иванов8442767"]
["2017-02-01","Работает",null,null,"Иванов85","Директор",null,"Иванов8542767"]
["2017-02-01","Работает",null,null,"Иванов86","Бухгалтер",null,"Иванов8642767"]
["2017-02-01","Работает",null,null,"Иванов87","ОК",null,"Иванов8742767"]
["2017-02-01","Работает",null,null,"Иванов88","Кассир",null,"Иванов8842767"]
["2017-02-01","Работает",null,null,"Иванов89","Инженер ТБ",null,"Иванов8942767"]
["2017-02-01","Уволен",null,null,"Иванов90","Экономист",null,"Иванов9042767"]
["2017-02-01","Работает",null,null,"Иванов91","Экономист 2",null,"Иванов9142767"]
["2017-02-01","Работает",null,null,"Иванов92","Директор",null,"Иванов9242767"]
["2017-02-01","Работает",null,null,"Иванов93","Бухгалтер",null,"Иванов9342767"]
["2017-02-01","Работает",null,null,"Иванов94","ОК",null,"Иванов9442767"]
["2017-02-01","Работает",null,null,"Иванов95","Кассир",null,"Иванов9542767"]
["2017-02-01","Работает",null,null,"Иванов96","Инженер ТБ",null,"Иванов9642767"]
["2017-02-01","Уволен",null,null,"Иванов97","Экономист",null,"Иванов9742767"]
["2017-02-01","Работает",null,null,"Иванов98","Экономист 2",null,"Иванов9842767"]
["2017-02-01","Работает",null,null,"Иванов99","Директор",null,"Иванов9942767"]
["2017-02-01","Работает",null,null,"Иванов100","Бухгалтер",null,"Иванов10042767"]
["2017-02-01","Работает",null,null,"Иванов101","ОК",null,"Иванов10142767"]
["2017-02-01","Работает",null,null,"Иванов102","Кассир",null,"Иванов10242767"]
["2017-02-01","Работает",null,null,"Иванов103","Инженер ТБ",null,"Иванов10342767"]
["2017-02-01","Уволен",null,null,"Иванов104","Экономист",null,"Иванов10442767"]
["2017-02-01","Работает",null,null,"Иванов105","Экономист 2",null,"Иванов10542767"]
["2017-02-01","Работает",null,null,"Иванов106","Директор",null,{"$f":"E108&A108","v":"Иванов10642767"}]
["2017-02-01","Работает",null,null,"Иванов107","Бухгалтер",null,"Иванов10742767"]
["2017-02-01","Работает",null,null,"Иванов108","ОК",null,"Иванов10842767"]
["2017-02-01","Работает",null,null,"Иванов109","Кассир",null,"Иванов10942767"]
["2017-02-01","Работает",null,null,"Иванов110","Инженер ТБ",null,"Иванов11042767"]
["2017-02-01","Уволен",null,null,"Иванов111","Экономист",null,"Иванов11142767"]
["2017-02-01","Работает",null,null,"Иванов112","Экономист 2",null,"Иванов11242767"]
["2017-03-01","Работает",null,null,"Иванов113","Директор",null,"Иванов11342795"]
["2017-03-01","Работает",null,null,"Иванов114","Бухгалтер",null,"Иванов11442795"]
["2017-03-01","Работает",null,null,"Иванов115","ОК",null,"Иванов11542795"]
["2017-03-01","Работает",null,null,"Иванов116","Кассир",null,"Иванов11642795"]
["2017-03-01","Работает",null,null,"Иванов117","Инженер ТБ",null,"Иванов11742795"]

{"sheet":"Табель","index":1,"n_rows":57,"n_cols":42,"rows_kept":57,"cut":false,"hidden":false,"merged":[[5,0,6,0],[5,41,6,41],[0,3,0,4],[5,36,6,36],[5,37,6,37],[5,38,6,38],[5,39,6,39],[5,40,6,40],[5,1,6,1],[5,2,6,2],[5,3,5,33],[5,34,6,34],[5,35,6,35],[0,10,3,36]]}
[null,"Табель учета рабочего времени",null,"2017-02-01",null,null,null,null,null,null,"Идея такова. После смены месяца на листе Табель - меняются Фамилии согластно дате в Штатке и должностя. После обновления списка остаются пустые строки и не вычисляется суммирование по итоговым часам за месяц. Хочется упростить бухгалтерам жизнь))) и по факту избавиться от проблемы с удалением формул!!!! Для этого думал использовать макрос автозаполнения форматов и формул в ячейках от D до AP столбцов. Нашел подходящий по всем параметрам макрос и попытался как могу приделать к файлу.\nВопреки всем ожиданиям макросник не сработал и выдал ошибку. Причину пока не нашел да и если честно не очень силен я в программировании а сроки поджимают -  начальство давит ))))"]
[]
[]
[]
[]
["№","ФИО","Должность","Дни месяца",null,null,null,null,null,null,null,null,null,null,null,null,null,null,null,null,null,null,null,null,null,null,null,null,null,null,null,null,null,null,"Рабочие дни","Вахта","ТО","ТО-2","Ремонт","Отпуск","Команд","Рабочие часы"]
[null,null,null,{"$f":"DAY(D1)","v":"1900-01-01"},{"$f":"IF(ISERR(D7+1),\"\",IF(D7+1<=DAY(EOMONTH($D$1,0)),D7+1,\"\"))","v":2},{"$f":"IF(ISERR(E7+1),\"\",IF(E7+1<=DAY(EOMONTH($D$1,0)),E7+1,\"\"))","v":3},4,5,6,7,8,9,10,11,12,13,14,15,16,17,18,19,20,21,22,23,24,25,26,27,28,"","",""]
[1,{"$f":"IFERROR(INDEX(Штатка!$E$3:INDEX(Штатка!$E:$E,COUNTA(Штатка!A:A)),SMALL(IF((\"Работает\"=Штатка!$B$3:INDEX(Штатка!$B:$B,COUNTA(Штатка!A:A)))*($D$1=Штатка!$A$3:INDEX(Штатка!$A:$A,COUNTA(Штатка!A:A))),ROW(Штатка!$B$3:INDEX(Штатка!$B:$B,COUNTA(Штатка!A:A)))-ROW(Штатка!$B$2),9^9),ROWS($8:8))),\"\")","v":"Иванов57"},{"$f":"IFERROR(INDEX(Штатка!F:F,MATCH(B8&$D$1,Штатка!H:H,0)),\"\")","v":"Директор"},"в","в","в","в","08:00:00","в","в","в","в","в","в","08:00:00","в","в","в","в","в","в","08:00:00","в","в","в","в","в","в","08:00:00","в","в","в","в","в",{"$f":"COUNTA(D8:AH8)-AM8-AN8","v":31},{"$f":"COUNTIF(D8:AH8,\"В\")","v":27},{"$f":"COUNTIF(D8:AH8,\"ТО-1\")","v":0},{"$f":"COUNTIF(D8:AH8,\"ТО-2\")","v":0},{"$f":"COUNTIF(D8:AH8,\"Р\")","v":0},{"$f":"COUNTIF(D8:AH8,\"О\")","v":0},{"$f":"COUNTIF(D8:AH8,\"К\")","v":0},{"$f":"(ROUND(SUM(D8:AH8)*24,0)/24)+AJ8/2.4+AK8/2.4+AL8/2.4+AO8/2.4","v":12.583333333333334}]
[1,{"$f":"IFERROR(INDEX(Штатка!$E$3:INDEX(Штатка!$E:$E,COUNTA(Штатка!A:A)),SMALL(IF((\"Работает\"=Штатка!$B$3:INDEX(Штатка!$B:$B,COUNTA(Штатка!A:A)))*($D$1=Штатка!$A$3:INDEX(Штатка!$A:$A,COUNTA(Штатка!A:A))),ROW(Штатка!$B$3:INDEX(Штатка!$B:$B,COUNTA(Штатка!A:A)))-ROW(Штатка!$B$2),9^9),ROWS($8:9))),\"\")","v":"Иванов58"},{"$f":"IFERROR(INDEX(Штатка!F:F,MATCH(B9&$D$1,Штатка!H:H,0)),\"\")","v":"Бухгалтер"},"в","в","в","в","08:00:00","в","в","в","в","в","в","08:00:00","в","в","в","в","в","в","08:00:00","в","в","в","в","в","в","08:00:00","в","в","в","в","в",31,{"$f":"COUNTIF(D9:AH9,\"В\")","v":27},{"$f":"COUNTIF(D9:AH9,\"ТО-1\")","v":0},{"$f":"COUNTIF(D9:AH9,\"ТО-2\")","v":0},{"$f":"COUNTIF(D9:AH9,\"Р\")","v":0},{"$f":"COUNTIF(D9:AH9,\"О\")","v":0},{"$f":"COUNTIF(D9:AH9,\"К\")","v":0},12.583333333333334]
[1,{"$f":"IFERROR(INDEX(Штатка!$E$3:INDEX(Штатка!$E:$E,COUNTA(Штатка!A:A)),SMALL(IF((\"Работает\"=Штатка!$B$3:INDEX(Штатка!$B:$B,COUNTA(Штатка!A:A)))*($D$1=Штатка!$A$3:INDEX(Штатка!$A:$A,COUNTA(Штатка!A:A))),ROW(Штатка!$B$3:INDEX(Штатка!$B:$B,COUNTA(Штатка!A:A)))-ROW(Штатка!$B$2),9^9),ROWS($8:10))),\"\")","v":"Иванов59"},{"$f":"IFERROR(INDEX(Штатка!F:F,MATCH(B10&$D$1,Штатка!H:H,0)),\"\")","v":"ОК"},"в","в","в","в","08:00:00","в","в","в","в","в","в","08:00:00","в","в","в","в","в","в","08:00:00","в","в","в","в","в","в","08:00:00","в","в","в","в","в",31,27,0,0,0,0,0,12.583333333333334]
[1,{"$f":"IFERROR(INDEX(Штатка!$E$3:INDEX(Штатка!$E:$E,COUNTA(Штатка!A:A)),SMALL(IF((\"Работает\"=Штатка!$B$3:INDEX(Штатка!$B:$B,COUNTA(Штатка!A:A)))*($D$1=Штатка!$A$3:INDEX(Штатка!$A:$A,COUNTA(Штатка!A:A))),ROW(Штатка!$B$3:INDEX(Штатка!$B:$B,COUNTA(Штатка!A:A)))-ROW(Штатка!$B$2),9^9),ROWS($8:11))),\"\")","v":"Иванов60"},{"$f":"IFERROR(INDEX(Штатка!F:F,MATCH(B11&$D$1,Штатка!H:H,0)),\"\")","v":"Кассир"}]
[1,{"$f":"IFERROR(INDEX(Штатка!$E$3:INDEX(Штатка!$E:$E,COUNTA(Штатка!A:A)),SMALL(IF((\"Работает\"=Штатка!$B$3:INDEX(Штатка!$B:$B,COUNTA(Штатка!A:A)))*($D$1=Штатка!$A$3:INDEX(Штатка!$A:$A,COUNTA(Штатка!A:A))),ROW(Штатка!$B$3:INDEX(Штатка!$B:$B,COUNTA(Штатка!A:A)))-ROW(Штатка!$B$2),9^9),ROWS($8:12))),\"\")","v":"Иванов61"},{"$f":"IFERROR(INDEX(Штатка!F:F,MATCH(B12&$D$1,Штатка!H:H,0)),\"\")","v":"Инженер ТБ"}]
[1,{"$f":"IFERROR(INDEX(Штатка!$E$3:INDEX(Штатка!$E:$E,COUNTA(Штатка!A:A)),SMALL(IF((\"Работает\"=Штатка!$B$3:INDEX(Штатка!$B:$B,COUNTA(Штатка!A:A)))*($D$1=Штатка!$A$3:INDEX(Штатка!$A:$A,COUNTA(Штатка!A:A))),ROW(Штатка!$B$3:INDEX(Штатка!$B:$B,COUNTA(Штатка!A:A)))-ROW(Штатка!$B$2),9^9),ROWS($8:13))),\"\")","v":"Иванов63"},{"$f":"IFERROR(INDEX(Штатка!F:F,MATCH(B13&$D$1,Штатка!H:H,0)),\"\")","v":"Экономист 2"}]
[1,{"$f":"IFERROR(INDEX(Штатка!$E$3:INDEX(Штатка!$E:$E,COUNTA(Штатка!A:A)),SMALL(IF((\"Работает\"=Штатка!$B$3:INDEX(Штатка!$B:$B,COUNTA(Штатка!A:A)))*($D$1=Штатка!$A$3:INDEX(Штатка!$A:$A,COUNTA(Штатка!A:A))),ROW(Штатка!$B$3:INDEX(Штатка!$B:$B,COUNTA(Штатка!A:A)))-ROW(Штатка!$B$2),9^9),ROWS($8:14))),\"\")","v":"Иванов64"},{"$f":"IFERROR(INDEX(Штатка!F:F,MATCH(B14&$D$1,Штатка!H:H,0)),\"\")","v":"Директор"}]
[1,{"$f":"IFERROR(INDEX(Штатка!$E$3:INDEX(Штатка!$E:$E,COUNTA(Штатка!A:A)),SMALL(IF((\"Работает\"=Штатка!$B$3:INDEX(Штатка!$B:$B,COUNTA(Штатка!A:A)))*($D$1=Штатка!$A$3:INDEX(Штатка!$A:$A,COUNTA(Штатка!A:A))),ROW(Штатка!$B$3:INDEX(Штатка!$B:$B,COUNTA(Штатка!A:A)))-ROW(Штатка!$B$2),9^9),ROWS($8:15))),\"\")","v":"Иванов65"},{"$f":"IFERROR(INDEX(Штатка!F:F,MATCH(B15&$D$1,Штатка!H:H,0)),\"\")","v":"Бухгалтер"}]
[1,{"$f":"IFERROR(INDEX(Штатка!$E$3:INDEX(Штатка!$E:$E,COUNTA(Штатка!A:A)),SMALL(IF((\"Работает\"=Штатка!$B$3:INDEX(Штатка!$B:$B,COUNTA(Штатка!A:A)))*($D$1=Штатка!$A$3:INDEX(Штатка!$A:$A,COUNTA(Штатка!A:A))),ROW(Штатка!$B$3:INDEX(Штатка!$B:$B,COUNTA(Штатка!A:A)))-ROW(Штатка!$B$2),9^9),ROWS($8:16))),\"\")","v":"Иванов66"},{"$f":"IFERROR(INDEX(Штатка!F:F,MATCH(B16&$D$1,Штатка!H:H,0)),\"\")","v":"ОК"}]
[1,{"$f":"IFERROR(INDEX(Штатка!$E$3:INDEX(Штатка!$E:$E,COUNTA(Штатка!A:A)),SMALL(IF((\"Работает\"=Штатка!$B$3:INDEX(Штатка!$B:$B,COUNTA(Штатка!A:A)))*($D$1=Штатка!$A$3:INDEX(Штатка!$A:$A,COUNTA(Штатка!A:A))),ROW(Штатка!$B$3:INDEX(Штатка!$B:$B,COUNTA(Штатка!A:A)))-ROW(Штатка!$B$2),9^9),ROWS($8:17))),\"\")","v":"Иванов67"},{"$f":"IFERROR(INDEX(Штатка!F:F,MATCH(B17&$D$1,Штатка!H:H,0)),\"\")","v":"Кассир"}]
[1,{"$f":"IFERROR(INDEX(Штатка!$E$3:INDEX(Штатка!$E:$E,COUNTA(Штатка!A:A)),SMALL(IF((\"Работает\"=Штатка!$B$3:INDEX(Штатка!$B:$B,COUNTA(Штатка!A:A)))*($D$1=Штатка!$A$3:INDEX(Штатка!$A:$A,COUNTA(Штатка!A:A))),ROW(Штатка!$B$3:INDEX(Штатка!$B:$B,COUNTA(Штатка!A:A)))-ROW(Штатка!$B$2),9^9),ROWS($8:18))),\"\")","v":"Иванов68"},{"$f":"IFERROR(INDEX(Штатка!F:F,MATCH(B18&$D$1,Штатка!H:H,0)),\"\")","v":"Инженер ТБ"}]
[1,{"$f":"IFERROR(INDEX(Штатка!$E$3:INDEX(Штатка!$E:$E,COUNTA(Штатка!A:A)),SMALL(IF((\"Работает\"=Штатка!$B$3:INDEX(Штатка!$B:$B,COUNTA(Штатка!A:A)))*($D$1=Штатка!$A$3:INDEX(Штатка!$A:$A,COUNTA(Штатка!A:A))),ROW(Штатка!$B$3:INDEX(Штатка!$B:$B,COUNTA(Штатка!A:A)))-ROW(Штатка!$B$2),9^9),ROWS($8:19))),\"\")","v":"Иванов70"},{"$f":"IFERROR(INDEX(Штатка!F:F,MATCH(B19&$D$1,Штатка!H:H,0)),\"\")","v":"Экономист 2"}]
[1,{"$f":"IFERROR(INDEX(Штатка!$E$3:INDEX(Штатка!$E:$E,COUNTA(Штатка!A:A)),SMALL(IF((\"Работает\"=Штатка!$B$3:INDEX(Штатка!$B:$B,COUNTA(Штатка!A:A)))*($D$1=Штатка!$A$3:INDEX(Штатка!$A:$A,COUNTA(Штатка!A:A))),ROW(Штатка!$B$3:INDEX(Штатка!$B:$B,COUNTA(Штатка!A:A)))-ROW(Штатка!$B$2),9^9),ROWS($8:20))),\"\")","v":"Иванов71"},{"$f":"IFERROR(INDEX(Штатка!F:F,MATCH(B20&$D$1,Штатка!H:H,0)),\"\")","v":"Директор"}]
[1,{"$f":"IFERROR(INDEX(Штатка!$E$3:INDEX(Штатка!$E:$E,COUNTA(Штатка!A:A)),SMALL(IF((\"Работает\"=Штатка!$B$3:INDEX(Штатка!$B:$B,COUNTA(Штатка!A:A)))*($D$1=Штатка!$A$3:INDEX(Штатка!$A:$A,COUNTA(Штатка!A:A))),ROW(Штатка!$B$3:INDEX(Штатка!$B:$B,COUNTA(Штатка!A:A)))-ROW(Штатка!$B$2),9^9),ROWS($8:21))),\"\")","v":"Иванов72"},{"$f":"IFERROR(INDEX(Штатка!F:F,MATCH(B21&$D$1,Штатка!H:H,0)),\"\")","v":"Бухгалтер"}]
[1,{"$f":"IFERROR(INDEX(Штатка!$E$3:INDEX(Штатка!$E:$E,COUNTA(Штатка!A:A)),SMALL(IF((\"Работает\"=Штатка!$B$3:INDEX(Штатка!$B:$B,COUNTA(Штатка!A:A)))*($D$1=Штатка!$A$3:INDEX(Штатка!$A:$A,COUNTA(Штатка!A:A))),ROW(Штатка!$B$3:INDEX(Штатка!$B:$B,COUNTA(Штатка!A:A)))-ROW(Штатка!$B$2),9^9),ROWS($8:22))),\"\")","v":"Иванов73"},{"$f":"IFERROR(INDEX(Штатка!F:F,MATCH(B22&$D$1,Штатка!H:H,0)),\"\")","v":"ОК"}]
[1,{"$f":"IFERROR(INDEX(Штатка!$E$3:INDEX(Штатка!$E:$E,COUNTA(Штатка!A:A)),SMALL(IF((\"Работает\"=Штатка!$B$3:INDEX(Штатка!$B:$B,COUNTA(Штатка!A:A)))*($D$1=Штатка!$A$3:INDEX(Штатка!$A:$A,COUNTA(Штатка!A:A))),ROW(Штатка!$B$3:INDEX(Штатка!$B:$B,COUNTA(Штатка!A:A)))-ROW(Штатка!$B$2),9^9),ROWS($8:23))),\"\")","v":"Иванов74"},{"$f":"IFERROR(INDEX(Штатка!F:F,MATCH(B23&$D$1,Штатка!H:H,0)),\"\")","v":"Кассир"}]
[1,{"$f":"IFERROR(INDEX(Штатка!$E$3:INDEX(Штатка!$E:$E,COUNTA(Штатка!A:A)),SMALL(IF((\"Работает\"=Штатка!$B$3:INDEX(Штатка!$B:$B,COUNTA(Штатка!A:A)))*($D$1=Штатка!$A$3:INDEX(Штатка!$A:$A,COUNTA(Штатка!A:A))),ROW(Штатка!$B$3:INDEX(Штатка!$B:$B,COUNTA(Штатка!A:A)))-ROW(Штатка!$B$2),9^9),ROWS($8:24))),\"\")","v":"Иванов75"},{"$f":"IFERROR(INDEX(Штатка!F:F,MATCH(B24&$D$1,Штатка!H:H,0)),\"\")","v":"Инженер ТБ"}]
[1,{"$f":"IFERROR(INDEX(Штатка!$E$3:INDEX(Штатка!$E:$E,COUNTA(Штатка!A:A)),SMALL(IF((\"Работает\"=Штатка!$B$3:INDEX(Штатка!$B:$B,COUNTA(Штатка!A:A)))*($D$1=Штатка!$A$3:INDEX(Штатка!$A:$A,COUNTA(Штатка!A:A))),ROW(Штатка!$B$3:INDEX(Штатка!$B:$B,COUNTA(Штатка!A:A)))-ROW(Штатка!$B$2),9^9),ROWS($8:25))),\"\")","v":"Иванов77"},{"$f":"IFERROR(INDEX(Штатка!F:F,MATCH(B25&$D$1,Штатка!H:H,0)),\"\")","v":"Экономист 2"}]
[1,{"$f":"IFERROR(INDEX(Штатка!$E$3:INDEX(Штатка!$E:$E,COUNTA(Штатка!A:A)),SMALL(IF((\"Работает\"=Штатка!$B$3:INDEX(Штатка!$B:$B,COUNTA(Штатка!A:A)))*($D$1=Штатка!$A$3:INDEX(Штатка!$A:$A,COUNTA(Штатка!A:A))),ROW(Штатка!$B$3:INDEX(Штатка!$B:$B,COUNTA(Штатка!A:A)))-ROW(Штатка!$B$2),9^9),ROWS($8:26))),\"\")","v":"Иванов78"},{"$f":"IFERROR(INDEX(Штатка!F:F,MATCH(B26&$D$1,Штатка!H:H,0)),\"\")","v":"Директор"}]
[1,{"$f":"IFERROR(INDEX(Штатка!$E$3:INDEX(Штатка!$E:$E,COUNTA(Штатка!A:A)),SMALL(IF((\"Работает\"=Штатка!$B$3:INDEX(Штатка!$B:$B,COUNTA(Штатка!A:A)))*($D$1=Штатка!$A$3:INDEX(Штатка!$A:$A,COUNTA(Штатка!A:A))),ROW(Штатка!$B$3:INDEX(Штатка!$B:$B,COUNTA(Штатка!A:A)))-ROW(Штатка!$B$2),9^9),ROWS($8:27))),\"\")","v":"Иванов79"},{"$f":"IFERROR(INDEX(Штатка!F:F,MATCH(B27&$D$1,Штатка!H:H,0)),\"\")","v":"Бухгалтер"}]
[1,{"$f":"IFERROR(INDEX(Штатка!$E$3:INDEX(Штатка!$E:$E,COUNTA(Штатка!A:A)),SMALL(IF((\"Работает\"=Штатка!$B$3:INDEX(Штатка!$B:$B,COUNTA(Штатка!A:A)))*($D$1=Штатка!$A$3:INDEX(Штатка!$A:$A,COUNTA(Штатка!A:A))),ROW(Штатка!$B$3:INDEX(Штатка!$B:$B,COUNTA(Штатка!A:A)))-ROW(Штатка!$B$2),9^9),ROWS($8:28))),\"\")","v":"Иванов80"},{"$f":"IFERROR(INDEX(Штатка!F:F,MATCH(B28&$D$1,Штатка!H:H,0)),\"\")","v":"ОК"}]
[1,{"$f":"IFERROR(INDEX(Штатка!$E$3:INDEX(Штатка!$E:$E,COUNTA(Штатка!A:A)),SMALL(IF((\"Работает\"=Штатка!$B$3:INDEX(Штатка!$B:$B,COUNTA(Штатка!A:A)))*($D$1=Штатка!$A$3:INDEX(Штатка!$A:$A,COUNTA(Штатка!A:A))),ROW(Штатка!$B$3:INDEX(Штатка!$B:$B,COUNTA(Штатка!A:A)))-ROW(Штатка!$B$2),9^9),ROWS($8:29))),\"\")","v":"Иванов81"},{"$f":"IFERROR(INDEX(Штатка!F:F,MATCH(B29&$D$1,Штатка!H:H,0)),\"\")","v":"Кассир"}]
[1,{"$f":"IFERROR(INDEX(Штатка!$E$3:INDEX(Штатка!$E:$E,COUNTA(Штатка!A:A)),SMALL(IF((\"Работает\"=Штатка!$B$3:INDEX(Штатка!$B:$B,COUNTA(Штатка!A:A)))*($D$1=Штатка!$A$3:INDEX(Штатка!$A:$A,COUNTA(Штатка!A:A))),ROW(Штатка!$B$3:INDEX(Штатка!$B:$B,COUNTA(Штатка!A:A)))-ROW(Штатка!$B$2),9^9),ROWS($8:30))),\"\")","v":"Иванов82"},{"$f":"IFERROR(INDEX(Штатка!F:F,MATCH(B30&$D$1,Штатка!H:H,0)),\"\")","v":"Инженер ТБ"}]
[1,{"$f":"IFERROR(INDEX(Штатка!$E$3:INDEX(Штатка!$E:$E,COUNTA(Штатка!A:A)),SMALL(IF((\"Работает\"=Штатка!$B$3:INDEX(Штатка!$B:$B,COUNTA(Штатка!A:A)))*($D$1=Штатка!$A$3:INDEX(Штатка!$A:$A,COUNTA(Штатка!A:A))),ROW(Штатка!$B$3:INDEX(Штатка!$B:$B,COUNTA(Штатка!A:A)))-ROW(Штатка!$B$2),9^9),ROWS($8:31))),\"\")","v":"Иванов84"},{"$f":"IFERROR(INDEX(Штатка!F:F,MATCH(B31&$D$1,Штатка!H:H,0)),\"\")","v":"Экономист 2"}]
[1,{"$f":"IFERROR(INDEX(Штатка!$E$3:INDEX(Штатка!$E:$E,COUNTA(Штатка!A:A)),SMALL(IF((\"Работает\"=Штатка!$B$3:INDEX(Штатка!$B:$B,COUNTA(Штатка!A:A)))*($D$1=Штатка!$A$3:INDEX(Штатка!$A:$A,COUNTA(Штатка!A:A))),ROW(Штатка!$B$3:INDEX(Штатка!$B:$B,COUNTA(Штатка!A:A)))-ROW(Штатка!$B$2),9^9),ROWS($8:32))),\"\")","v":"Иванов85"},{"$f":"IFERROR(INDEX(Штатка!F:F,MATCH(B32&$D$1,Штатка!H:H,0)),\"\")","v":"Директор"}]
[1,{"$f":"IFERROR(INDEX(Штатка!$E$3:INDEX(Штатка!$E:$E,COUNTA(Штатка!A:A)),SMALL(IF((\"Работает\"=Штатка!$B$3:INDEX(Штатка!$B:$B,COUNTA(Штатка!A:A)))*($D$1=Штатка!$A$3:INDEX(Штатка!$A:$A,COUNTA(Штатка!A:A))),ROW(Штатка!$B$3:INDEX(Штатка!$B:$B,COUNTA(Штатка!A:A)))-ROW(Штатка!$B$2),9^9),ROWS($8:33))),\"\")","v":"Иванов86"},{"$f":"IFERROR(INDEX(Штатка!F:F,MATCH(B33&$D$1,Штатка!H:H,0)),\"\")","v":"Бухгалтер"}]
[1,{"$f":"IFERROR(INDEX(Штатка!$E$3:INDEX(Штатка!$E:$E,COUNTA(Штатка!A:A)),SMALL(IF((\"Работает\"=Штатка!$B$3:INDEX(Штатка!$B:$B,COUNTA(Штатка!A:A)))*($D$1=Штатка!$A$3:INDEX(Штатка!$A:$A,COUNTA(Штатка!A:A))),ROW(Штатка!$B$3:INDEX(Штатка!$B:$B,COUNTA(Штатка!A:A)))-ROW(Штатка!$B$2),9^9),ROWS($8:34))),\"\")","v":"Иванов87"},{"$f":"IFERROR(INDEX(Штатка!F:F,MATCH(B34&$D$1,Штатка!H:H,0)),\"\")","v":"ОК"}]
[1,{"$f":"IFERROR(INDEX(Штатка!$E$3:INDEX(Штатка!$E:$E,COUNTA(Штатка!A:A)),SMALL(IF((\"Работает\"=Штатка!$B$3:INDEX(Штатка!$B:$B,COUNTA(Штатка!A:A)))*($D$1=Штатка!$A$3:INDEX(Штатка!$A:$A,COUNTA(Штатка!A:A))),ROW(Штатка!$B$3:INDEX(Штатка!$B:$B,COUNTA(Штатка!A:A)))-ROW(Штатка!$B$2),9^9),ROWS($8:35))),\"\")","v":"Иванов88"},{"$f":"IFERROR(INDEX(Штатка!F:F,MATCH(B35&$D$1,Штатка!H:H,0)),\"\")","v":"Кассир"}]
[1,{"$f":"IFERROR(INDEX(Штатка!$E$3:INDEX(Штатка!$E:$E,COUNTA(Штатка!A:A)),SMALL(IF((\"Работает\"=Штатка!$B$3:INDEX(Штатка!$B:$B,COUNTA(Штатка!A:A)))*($D$1=Штатка!$A$3:INDEX(Штатка!$A:$A,COUNTA(Штатка!A:A))),ROW(Штатка!$B$3:INDEX(Штатка!$B:$B,COUNTA(Штатка!A:A)))-ROW(Штатка!$B$2),9^9),ROWS($8:36))),\"\")","v":"Иванов89"},{"$f":"IFERROR(INDEX(Штатка!F:F,MATCH(B36&$D$1,Штатка!H:H,0)),\"\")","v":"Инженер ТБ"}]
[1,{"$f":"IFERROR(INDEX(Штатка!$E$3:INDEX(Штатка!$E:$E,COUNTA(Штатка!A:A)),SMALL(IF((\"Работает\"=Штатка!$B$3:INDEX(Штатка!$B:$B,COUNTA(Штатка!A:A)))*($D$1=Штатка!$A$3:INDEX(Штатка!$A:$A,COUNTA(Штатка!A:A))),ROW(Штатка!$B$3:INDEX(Штатка!$B:$B,COUNTA(Штатка!A:A)))-ROW(Штатка!$B$2),9^9),ROWS($8:37))),\"\")","v":"Иванов91"},{"$f":"IFERROR(INDEX(Штатка!F:F,MATCH(B37&$D$1,Штатка!H:H,0)),\"\")","v":"Экономист 2"}]
[1,{"$f":"IFERROR(INDEX(Штатка!$E$3:INDEX(Штатка!$E:$E,COUNTA(Штатка!A:A)),SMALL(IF((\"Работает\"=Штатка!$B$3:INDEX(Штатка!$B:$B,COUNTA(Штатка!A:A)))*($D$1=Штатка!$A$3:INDEX(Штатка!$A:$A,COUNTA(Штатка!A:A))),ROW(Штатка!$B$3:INDEX(Штатка!$B:$B,COUNTA(Штатка!A:A)))-ROW(Штатка!$B$2),9^9),ROWS($8:38))),\"\")","v":"Иванов92"},{"$f":"IFERROR(INDEX(Штатка!F:F,MATCH(B38&$D$1,Штатка!H:H,0)),\"\")","v":"Директор"}]
[1,{"$f":"IFERROR(INDEX(Штатка!$E$3:INDEX(Штатка!$E:$E,COUNTA(Штатка!A:A)),SMALL(IF((\"Работает\"=Штатка!$B$3:INDEX(Штатка!$B:$B,COUNTA(Штатка!A:A)))*($D$1=Штатка!$A$3:INDEX(Штатка!$A:$A,COUNTA(Штатка!A:A))),ROW(Штатка!$B$3:INDEX(Штатка!$B:$B,COUNTA(Штатка!A:A)))-ROW(Штатка!$B$2),9^9),ROWS($8:39))),\"\")","v":"Иванов93"},{"$f":"IFERROR(INDEX(Штатка!F:F,MATCH(B39&$D$1,Штатка!H:H,0)),\"\")","v":"Бухгалтер"}]
[1,{"$f":"IFERROR(INDEX(Штатка!$E$3:INDEX(Штатка!$E:$E,COUNTA(Штатка!A:A)),SMALL(IF((\"Работает\"=Штатка!$B$3:INDEX(Штатка!$B:$B,COUNTA(Штатка!A:A)))*($D$1=Штатка!$A$3:INDEX(Штатка!$A:$A,COUNTA(Штатка!A:A))),ROW(Штатка!$B$3:INDEX(Штатка!$B:$B,COUNTA(Штатка!A:A)))-ROW(Штатка!$B$2),9^9),ROWS($8:40))),\"\")","v":"Иванов94"},{"$f":"IFERROR(INDEX(Штатка!F:F,MATCH(B40&$D$1,Штатка!H:H,0)),\"\")","v":"ОК"}]
[1,{"$f":"IFERROR(INDEX(Штатка!$E$3:INDEX(Штатка!$E:$E,COUNTA(Штатка!A:A)),SMALL(IF((\"Работает\"=Штатка!$B$3:INDEX(Штатка!$B:$B,COUNTA(Штатка!A:A)))*($D$1=Штатка!$A$3:INDEX(Штатка!$A:$A,COUNTA(Штатка!A:A))),ROW(Штатка!$B$3:INDEX(Штатка!$B:$B,COUNTA(Штатка!A:A)))-ROW(Штатка!$B$2),9^9),ROWS($8:41))),\"\")","v":"Иванов95"},{"$f":"IFERROR(INDEX(Штатка!F:F,MATCH(B41&$D$1,Штатка!H:H,0)),\"\")","v":"Кассир"}]
[1,{"$f":"IFERROR(INDEX(Штатка!$E$3:INDEX(Штатка!$E:$E,COUNTA(Штатка!A:A)),SMALL(IF((\"Работает\"=Штатка!$B$3:INDEX(Штатка!$B:$B,COUNTA(Штатка!A:A)))*($D$1=Штатка!$A$3:INDEX(Штатка!$A:$A,COUNTA(Штатка!A:A))),ROW(Штатка!$B$3:INDEX(Штатка!$B:$B,COUNTA(Штатка!A:A)))-ROW(Штатка!$B$2),9^9),ROWS($8:42))),\"\")","v":"Иванов96"},{"$f":"IFERROR(INDEX(Штатка!F:F,MATCH(B42&$D$1,Штатка!H:H,0)),\"\")","v":"Инженер ТБ"}]
[1,{"$f":"IFERROR(INDEX(Штатка!$E$3:INDEX(Штатка!$E:$E,COUNTA(Штатка!A:A)),SMALL(IF((\"Работает\"=Штатка!$B$3:INDEX(Штатка!$B:$B,COUNTA(Штатка!A:A)))*($D$1=Штатка!$A$3:INDEX(Штатка!$A:$A,COUNTA(Штатка!A:A))),ROW(Штатка!$B$3:INDEX(Штатка!$B:$B,COUNTA(Штатка!A:A)))-ROW(Штатка!$B$2),9^9),ROWS($8:43))),\"\")","v":"Иванов98"},{"$f":"IFERROR(INDEX(Штатка!F:F,MATCH(B43&$D$1,Штатка!H:H,0)),\"\")","v":"Экономист 2"}]
[1,{"$f":"IFERROR(INDEX(Штатка!$E$3:INDEX(Штатка!$E:$E,COUNTA(Штатка!A:A)),SMALL(IF((\"Работает\"=Штатка!$B$3:INDEX(Штатка!$B:$B,COUNTA(Штатка!A:A)))*($D$1=Штатка!$A$3:INDEX(Штатка!$A:$A,COUNTA(Штатка!A:A))),ROW(Штатка!$B$3:INDEX(Штатка!$B:$B,COUNTA(Штатка!A:A)))-ROW(Штатка!$B$2),9^9),ROWS($8:44))),\"\")","v":"Иванов99"},{"$f":"IFERROR(INDEX(Штатка!F:F,MATCH(B44&$D$1,Штатка!H:H,0)),\"\")","v":"Директор"}]
[1,{"$f":"IFERROR(INDEX(Штатка!$E$3:INDEX(Штатка!$E:$E,COUNTA(Штатка!A:A)),SMALL(IF((\"Работает\"=Штатка!$B$3:INDEX(Штатка!$B:$B,COUNTA(Штатка!A:A)))*($D$1=Штатка!$A$3:INDEX(Штатка!$A:$A,COUNTA(Штатка!A:A))),ROW(Штатка!$B$3:INDEX(Штатка!$B:$B,COUNTA(Штатка!A:A)))-ROW(Штатка!$B$2),9^9),ROWS($8:45))),\"\")","v":"Иванов100"},{"$f":"IFERROR(INDEX(Штатка!F:F,MATCH(B45&$D$1,Штатка!H:H,0)),\"\")","v":"Бухгалтер"}]
[1,{"$f":"IFERROR(INDEX(Штатка!$E$3:INDEX(Штатка!$E:$E,COUNTA(Штатка!A:A)),SMALL(IF((\"Работает\"=Штатка!$B$3:INDEX(Штатка!$B:$B,COUNTA(Штатка!A:A)))*($D$1=Штатка!$A$3:INDEX(Штатка!$A:$A,COUNTA(Штатка!A:A))),ROW(Штатка!$B$3:INDEX(Штатка!$B:$B,COUNTA(Штатка!A:A)))-ROW(Штатка!$B$2),9^9),ROWS($8:46))),\"\")","v":"Иванов101"},{"$f":"IFERROR(INDEX(Штатка!F:F,MATCH(B46&$D$1,Штатка!H:H,0)),\"\")","v":"ОК"}]
[1,{"$f":"IFERROR(INDEX(Штатка!$E$3:INDEX(Штатка!$E:$E,COUNTA(Штатка!A:A)),SMALL(IF((\"Работает\"=Штатка!$B$3:INDEX(Штатка!$B:$B,COUNTA(Штатка!A:A)))*($D$1=Штатка!$A$3:INDEX(Штатка!$A:$A,COUNTA(Штатка!A:A))),ROW(Штатка!$B$3:INDEX(Штатка!$B:$B,COUNTA(Штатка!A:A)))-ROW(Штатка!$B$2),9^9),ROWS($8:47))),\"\")","v":"Иванов102"},{"$f":"IFERROR(INDEX(Штатка!F:F,MATCH(B47&$D$1,Штатка!H:H,0)),\"\")","v":"Кассир"}]
[1,{"$f":"IFERROR(INDEX(Штатка!$E$3:INDEX(Штатка!$E:$E,COUNTA(Штатка!A:A)),SMALL(IF((\"Работает\"=Штатка!$B$3:INDEX(Штатка!$B:$B,COUNTA(Штатка!A:A)))*($D$1=Штатка!$A$3:INDEX(Штатка!$A:$A,COUNTA(Штатка!A:A))),ROW(Штатка!$B$3:INDEX(Штатка!$B:$B,COUNTA(Штатка!A:A)))-ROW(Штатка!$B$2),9^9),ROWS($8:48))),\"\")","v":"Иванов103"},{"$f":"IFERROR(INDEX(Штатка!F:F,MATCH(B48&$D$1,Штатка!H:H,0)),\"\")","v":"Инженер ТБ"}]
[1,{"$f":"IFERROR(INDEX(Штатка!$E$3:INDEX(Штатка!$E:$E,COUNTA(Штатка!A:A)),SMALL(IF((\"Работает\"=Штатка!$B$3:INDEX(Штатка!$B:$B,COUNTA(Штатка!A:A)))*($D$1=Штатка!$A$3:INDEX(Штатка!$A:$A,COUNTA(Штатка!A:A))),ROW(Штатка!$B$3:INDEX(Штатка!$B:$B,COUNTA(Штатка!A:A)))-ROW(Штатка!$B$2),9^9),ROWS($8:49))),\"\")","v":"Иванов105"},{"$f":"IFERROR(INDEX(Штатка!F:F,MATCH(B49&$D$1,Штатка!H:H,0)),\"\")","v":"Экономист 2"}]
[1,{"$f":"IFERROR(INDEX(Штатка!$E$3:INDEX(Штатка!$E:$E,COUNTA(Штатка!A:A)),SMALL(IF((\"Работает\"=Штатка!$B$3:INDEX(Штатка!$B:$B,COUNTA(Штатка!A:A)))*($D$1=Штатка!$A$3:INDEX(Штатка!$A:$A,COUNTA(Штатка!A:A))),ROW(Штатка!$B$3:INDEX(Штатка!$B:$B,COUNTA(Штатка!A:A)))-ROW(Штатка!$B$2),9^9),ROWS($8:50))),\"\")","v":"Иванов106"},{"$f":"IFERROR(INDEX(Штатка!F:F,MATCH(B50&$D$1,Штатка!H:H,0)),\"\")","v":"Директор"}]
[1,{"$f":"IFERROR(INDEX(Штатка!$E$3:INDEX(Штатка!$E:$E,COUNTA(Штатка!A:A)),SMALL(IF((\"Работает\"=Штатка!$B$3:INDEX(Штатка!$B:$B,COUNTA(Штатка!A:A)))*($D$1=Штатка!$A$3:INDEX(Штатка!$A:$A,COUNTA(Штатка!A:A))),ROW(Штатка!$B$3:INDEX(Штатка!$B:$B,COUNTA(Штатка!A:A)))-ROW(Штатка!$B$2),9^9),ROWS($8:51))),\"\")","v":"Иванов107"},{"$f":"IFERROR(INDEX(Штатка!F:F,MATCH(B51&$D$1,Штатка!H:H,0)),\"\")","v":"Бухгалтер"}]
[1,{"$f":"IFERROR(INDEX(Штатка!$E$3:INDEX(Штатка!$E:$E,COUNTA(Штатка!A:A)),SMALL(IF((\"Работает\"=Штатка!$B$3:INDEX(Штатка!$B:$B,COUNTA(Штатка!A:A)))*($D$1=Штатка!$A$3:INDEX(Штатка!$A:$A,COUNTA(Штатка!A:A))),ROW(Штатка!$B$3:INDEX(Штатка!$B:$B,COUNTA(Штатка!A:A)))-ROW(Штатка!$B$2),9^9),ROWS($8:52))),\"\")","v":"Иванов108"},{"$f":"IFERROR(INDEX(Штатка!F:F,MATCH(B52&$D$1,Штатка!H:H,0)),\"\")","v":"ОК"}]
[1,{"$f":"IFERROR(INDEX(Штатка!$E$3:INDEX(Штатка!$E:$E,COUNTA(Штатка!A:A)),SMALL(IF((\"Работает\"=Штатка!$B$3:INDEX(Штатка!$B:$B,COUNTA(Штатка!A:A)))*($D$1=Штатка!$A$3:INDEX(Штатка!$A:$A,COUNTA(Штатка!A:A))),ROW(Штатка!$B$3:INDEX(Штатка!$B:$B,COUNTA(Штатка!A:A)))-ROW(Штатка!$B$2),9^9),ROWS($8:53))),\"\")","v":"Иванов109"},{"$f":"IFERROR(INDEX(Штатка!F:F,MATCH(B53&$D$1,Штатка!H:H,0)),\"\")","v":"Кассир"}]
[1,{"$f":"IFERROR(INDEX(Штатка!$E$3:INDEX(Штатка!$E:$E,COUNTA(Штатка!A:A)),SMALL(IF((\"Работает\"=Штатка!$B$3:INDEX(Штатка!$B:$B,COUNTA(Штатка!A:A)))*($D$1=Штатка!$A$3:INDEX(Штатка!$A:$A,COUNTA(Штатка!A:A))),ROW(Штатка!$B$3:INDEX(Штатка!$B:$B,COUNTA(Штатка!A:A)))-ROW(Штатка!$B$2),9^9),ROWS($8:54))),\"\")","v":"Иванов110"},{"$f":"IFERROR(INDEX(Штатка!F:F,MATCH(B54&$D$1,Штатка!H:H,0)),\"\")","v":"Инженер ТБ"}]
[1,{"$f":"IFERROR(INDEX(Штатка!$E$3:INDEX(Штатка!$E:$E,COUNTA(Штатка!A:A)),SMALL(IF((\"Работает\"=Штатка!$B$3:INDEX(Штатка!$B:$B,COUNTA(Штатка!A:A)))*($D$1=Штатка!$A$3:INDEX(Штатка!$A:$A,COUNTA(Штатка!A:A))),ROW(Штатка!$B$3:INDEX(Штатка!$B:$B,COUNTA(Штатка!A:A)))-ROW(Штатка!$B$2),9^9),ROWS($8:55))),\"\")","v":"Иванов112"},{"$f":"IFERROR(INDEX(Штатка!F:F,MATCH(B55&$D$1,Штатка!H:H,0)),\"\")","v":"Экономист 2"},null,null,null,null,null,null,null,null,null,null,null,null,null,null,null,null,null,null,null,null,null,null,null,null,null,null,null,null,null,null,null,{"$f":"COUNTA(D55:AH55)-AM55-AN55","v":0},{"$f":"COUNTIF(D55:AH55,\"В\")","v":0},{"$f":"COUNTIF(D55:AH55,\"ТО-1\")","v":0},{"$f":"COUNTIF(D55:AH55,\"ТО-2\")","v":0},{"$f":"COUNTIF(D55:AH55,\"Р\")","v":0},{"$f":"COUNTIF(D55:AH55,\"О\")","v":0},{"$f":"COUNTIF(D55:AH55,\"К\")","v":0},{"$f":"(ROUND(SUM(D55:AH55)*24,0)/24)+AJ55/2.4+AK55/2.4+AL55/2.4+AO55/2.4","v":0}]
[1,{"$f":"IFERROR(INDEX(Штатка!$E$3:INDEX(Штатка!$E:$E,COUNTA(Штатка!A:A)),SMALL(IF((\"Работает\"=Штатка!$B$3:INDEX(Штатка!$B:$B,COUNTA(Штатка!A:A)))*($D$1=Штатка!$A$3:INDEX(Штатка!$A:$A,COUNTA(Штатка!A:A))),ROW(Штатка!$B$3:INDEX(Штатка!$B:$B,COUNTA(Штатка!A:A)))-ROW(Штатка!$B$2),9^9),ROWS($8:56))),\"\")","v":""},{"$f":"IFERROR(INDEX(Штатка!F:F,MATCH(B56&$D$1,Штатка!H:H,0)),\"\")","v":""}]
[1,{"$f":"IFERROR(INDEX(Штатка!$E$3:INDEX(Штатка!$E:$E,COUNTA(Штатка!A:A)),SMALL(IF((\"Работает\"=Штатка!$B$3:INDEX(Штатка!$B:$B,COUNTA(Штатка!A:A)))*($D$1=Штатка!$A$3:INDEX(Штатка!$A:$A,COUNTA(Штатка!A:A))),ROW(Штатка!$B$3:INDEX(Штатка!$B:$B,COUNTA(Штатка!A:A)))-ROW(Штатка!$B$2),9^9),ROWS($8:57))),\"\")","v":""},{"$f":"IFERROR(INDEX(Штатка!F:F,MATCH(B57&$D$1,Штатка!H:H,0)),\"\")","v":""}]

{"sheet":"Зарплата","index":2,"n_rows":5,"n_cols":6,"rows_kept":5,"cut":false,"hidden":false,"merged":[]}
[]
[]
[null,1,1,"А",{"$f":"D3&C3","v":"А1"},{"$f":"C3&D3&E3","v":"1АА1"}]
[null,2]
[null,3]